bitfinex/quotes_SOLUSD_20241226
["timestamp","ask_amount","ask_price","bid_price","bid_amount"]
[1735205743414,9.65040535,189.77,189.7,8.0517]
[1735205743825,9.65040535,189.77,189.71,9.65040535]
[1735205744135,9.65040535,189.77,189.71,9.77589535]
[1735205744336,1.50192541,189.81,189.73,0.12549]
[1735205744635,9.65040535,189.81,189.74,9.65040535]
[1735205744823,9.65040535,189.8,189.74,9.65040535]
[1735205745130,9.775895,189.82,189.75,9.77589535]
[1735205745323,9.65040535,189.81,189.75,9.77589535]
[1735205745518,9.65040535,189.8,189.73,20.0]
[1735205745723,9.65040535,189.8,189.73,29.65040535]
[1735205745913,9.65040535,189.8,189.74,0.12549]
[1735205747346,9.65040535,189.79,189.71,0.79033102]
[1735205747515,9.65040535,189.78,189.71,9.65040535]
[1735205747711,9.65040535,189.78,189.72,0.12549]
[1735205747917,9.65040535,189.79,189.72,9.77589535]
[1735205748119,9.65040535,189.81,189.74,0.12549]
[1735205748425,9.65040535,189.81,189.75,9.65040535]
[1735205748635,68.9437904,189.84,189.73,29.65040535]
[1735205748636,9.65040535,189.8,189.73,29.65040535]
[1735205748942,9.65040535,189.79,189.73,29.65040535]
[1735205749245,9.65040535,189.79,189.74,0.12549]
[1735205749544,9.65040535,189.81,189.74,9.77589535]
[1735205749725,68.9437904,189.84,189.76,9.77589535]
[1735205749931,9.65040535,189.83,189.76,9.77589535]
[1735205750136,68.9437904,189.84,189.76,9.77589535]
[1735205750137,9.65040535,189.81,189.76,0.12549]
[1735205750335,9.65040535,189.82,189.76,9.77589535]
[1735205751019,9.65040535,189.83,189.76,9.77589535]
[1735205751219,9.65040535,189.82,189.76,9.77589535]
[1735205751833,68.9437904,189.84,189.76,9.77589535]
[1735205752139,9.65040535,189.82,189.76,9.77589535]
[1735205752343,68.9437904,189.84,189.78,9.65040535]
[1735205752550,68.9437904,189.84,189.79,0.12549]
[1735205752845,78.59419575,189.84,189.73,0.79028475]
[1735205753147,9.65040535,189.83,189.76,9.65040535]
[1735205753735,9.65040535,189.83,189.74,0.12549]
[1735205753942,9.65040535,189.75,189.7,8.0517]
[1735205754349,9.65040535,189.74,189.7,8.0517]
[1735205754645,9.65040535,189.75,189.7,8.0517]
[1735205755221,9.65040535,189.74,189.7,8.0517]
[1735205755450,9.65040535,189.72,189.66,7.8076]
[1735205756249,9.65040535,189.71,189.66,7.8076]
[1735205756666,9.65040535,189.72,189.67,0.12549]
[1735205757627,9.65040535,189.74,189.67,9.77589535]
[1735205758046,23.776884,189.76,189.69,0.12549]
[1735205758245,9.65040535,189.75,189.69,0.12549]
[1735205758433,9.65040535,189.77,189.71,0.12549]
[1735205758631,9.65040535,189.78,189.71,9.65040535]
[1735205758838,9.65040535,189.78,189.72,0.12549]
[1735205759042,9.65040535,189.79,189.72,9.77589535]
[1735205759448,9.65040535,189.8,189.74,0.12549]
[1735205760257,15.0233962,189.8,189.74,0.12549]
[1735205761454,15.0233962,189.79,189.72,15.0233962]
[1735205761950,15.0233962,189.78,189.73,0.12549]
[1735205762526,15.0233962,189.79,189.72,15.1488862]
[1735205762728,15.0233962,189.8,189.74,0.12549]
[1735205762948,15.0233962,189.8,189.74,7.84299]
[1735205763171,15.0233962,189.81,189.74,7.84299]
[1735205763532,15.0233962,189.79,189.74,7.7175]
[1735205764628,15.0233962,189.78,189.74,7.7175]
[1735205764828,23.776884,189.83,189.72,0.12549]
[1735205764829,15.0233962,189.77,189.72,0.12549]
[1735205765056,15.0233962,189.76,189.69,22.7408962]
[1735205765244,15.0233962,189.75,189.69,7.7175]
[1735205765557,15.0233962,189.74,189.69,7.7175]
[1735205765944,15.0233962,189.74,189.7,0.12549]
[1735205766454,15.0233962,189.74,189.69,7.7175]
[1735205767150,15.0233962,189.73,189.69,7.7175]
[1735205768863,15.0233962,189.73,189.67,0.12549]
[1735205769165,15.0233962,189.72,189.64,22.7408962]
[1735205769333,15.0233962,189.68,189.64,7.7175]
[1735205770461,15.0233962,189.67,189.6,15.0233962]
[1735205770763,15.0233962,189.67,189.6,15.1488862]
[1735205771156,15.0233962,189.63,189.59,7.7175]
[1735205771354,15.0233962,189.62,189.55,15.0233962]
[1735205771861,15.0233962,189.62,189.56,0.12549]
[1735205772062,20.0,189.67,189.58,15.0233962]
[1735205772365,15.0233962,189.66,189.6,0.12549]
[1735205774270,23.776884,189.69,189.63,15.0233962]
[1735205774477,15.0233962,189.71,189.64,15.1488862]
[1735205775146,15.0233962,189.72,189.65,15.0233962]
[1735205775353,15.0233962,189.72,189.66,0.12549]
[1735205775658,15.0233962,189.73,189.67,0.12549]
[1735205776238,15.0233962,189.72,189.67,0.12549]
[1735205776440,15.0233962,189.73,189.67,0.12549]
[1735205778490,15.0233962,189.73,189.66,0.12549]
[1735205778765,15.0233962,189.74,189.67,15.0233962]
[1735205779060,15.0233962,189.74,189.68,0.12549]
[1735205779268,15.0233962,189.73,189.68,0.12549]
[1735205779470,15.0233962,189.73,189.67,0.12549]
[1735205780365,15.0233962,189.74,189.67,0.12549]
[1735205780545,15.0233962,189.73,189.67,0.12549]
[1735205780745,15.0233962,189.73,189.65,15.0233962]
[1735205780945,15.0233962,189.71,189.64,15.0233962]
[1735205781147,15.0233962,189.68,189.63,7.5578]
[1735205781747,15.0233962,189.69,189.63,7.5578]
[1735205782235,15.0233962,189.7,189.64,0.12549]
[1735205782434,15.0233962,189.71,189.64,15.1488862]
[1735205782849,15.0233962,189.69,189.57,7.5578]
[1735205783168,15.0233962,189.63,189.57,7.5578]
[1735205783359,15.0233962,189.63,189.58,0.12549]
[1735205783542,15.0233962,189.64,189.58,0.12549]
[1735205784139,15.0233962,189.64,189.57,22.5811962]
[1735205784569,15.0233962,189.63,189.58,0.12549]
[1735205785074,15.0233962,189.65,189.58,0.12549]
[1735205786372,20.69563247,189.72,189.62,15.0233962]
[1735205786373,18.85013627,189.72,189.62,15.0233962]
[1735205786574,15.0233962,189.69,189.62,15.0233962]
[1735205786870,15.0233962,189.66,189.59,15.0233962]
[1735205787665,15.0233962,189.65,189.58,15.0233962]
[1735205787866,15.0233962,189.65,189.57,22.5811962]
[1735205788072,15.0233962,189.64,189.57,22.5811962]
[1735205788269,15.0233962,189.64,189.58,0.12549]
[1735205789371,15.0233962,189.63,189.57,7.5578]
[1735205789754,15.0233962,189.61,189.54,15.0233962]
[1735205789964,15.0233962,189.59,189.52,22.7732962]
[1735205790169,15.0233962,189.58,189.52,7.7499]
[1735205790678,23.776884,189.57,189.52,7.7499]
[1735205791355,15.0233962,189.58,189.52,7.7499]
[1735205791557,15.0233962,189.59,189.52,22.7732962]
[1735205792276,15.0233962,189.58,189.52,7.7499]
[1735205796876,15.0233962,189.59,189.52,22.7732962]
[1735205797087,20.0,189.63,189.55,0.12549]
[1735205797376,35.0233962,189.64,189.57,15.0233962]
[1735205797786,15.0233962,189.63,189.57,0.12549]
[1735205798270,15.0233962,189.64,189.57,15.1488862]
[1735205798576,15.0233962,189.65,189.57,15.0233962]
[1735205798875,15.0233962,189.64,189.57,15.0233962]
[1735205799676,15.0233962,189.64,189.52,8.54111251]
[1735205799889,15.0233962,189.63,189.57,0.12549]
[1735205800050,15.0233962,189.64,189.57,15.1488862]
[1735205805654,15.0233962,189.64,189.57,0.12549]
[1735205807781,15.0233962,189.63,189.56,0.12549]
[1735205808481,15.0233962,189.64,189.57,0.12549]
[1735205809184,15.0233962,189.65,189.57,15.0233962]
[1735205809365,15.0233962,189.64,189.57,15.0233962]
[1735205814383,9.63209977,189.64,189.57,0.12549]
[1735205824005,117.782435,189.71,189.6,9.63209977]
[1735205824177,29.63209977,189.68,189.6,9.63209977]
[1735205825071,9.63209977,189.68,189.61,9.63209977]
[1735205825289,27.53082072,189.69,189.64,0.12549]
[1735205825491,27.53082072,189.69,189.65,9.63209977]
[1735205825804,27.53082072,189.69,189.67,0.12549]
[1735205825971,27.53082072,189.69,189.67,9.75758977]
[1735205826296,27.53082072,189.69,189.68,9.63209977]
[1735205826681,9.63209977,189.75,189.68,9.63209977]
[1735205826882,9.63209977,189.74,189.67,9.75758977]
[1735205827084,9.63209977,189.73,189.67,0.12549]
[1735205828801,27.52008652,189.79,189.69,0.12549]
[1735205828997,9.63209977,189.78,189.71,0.12549]
[1735205829172,9.63209977,189.76,189.69,9.63209977]
[1735205829378,9.63209977,189.74,189.67,9.63209977]
[1735205829580,9.63209977,189.73,189.66,17.58149977]
[1735205830204,9.63209977,189.74,189.68,9.63209977]
[1735205830410,9.63209977,189.77,189.7,9.75758977]
[1735205830707,9.63209977,189.76,189.7,0.12549]
[1735205830889,9.63209977,189.74,189.66,7.9494]
[1735205831094,9.63209977,189.74,189.66,17.58149977]
[1735205831284,9.63209977,189.74,189.67,9.63209977]
[1735205832106,40.69308652,189.79,189.67,9.63209977]
[1735205832107,9.63209977,189.75,189.68,9.63209977]
[1735205832469,9.63209977,189.75,189.69,0.12549]
[1735205832812,9.63209977,189.76,189.69,9.63209977]
[1735205833501,9.63209977,189.77,189.7,9.75758977]
[1735205834484,9.63209977,189.78,189.71,9.63209977]
[1735205835277,9.63209977,189.77,189.71,0.12549]
[1735205836581,9.63209977,189.76,189.71,0.12549]
[1735205836782,9.63209977,189.76,189.68,9.63209977]
[1735205841906,9.63209977,189.76,189.69,9.63209977]
[1735205843505,9.63209977,189.78,189.7,0.12549]
[1735205844417,9.63209977,189.76,189.7,0.12549]
[1735205844711,9.63209977,189.75,189.69,0.12549]
[1735205845386,9.63209977,189.76,189.69,0.12549]
[1735205845601,23.776884,189.78,189.7,9.75758977]
[1735205845801,9.63209977,189.77,189.7,9.75758977]
[1735205847795,9.63209977,189.77,189.7,0.12549]
[1735205848126,9.63209977,189.77,189.7,9.75758977]
[1735205848293,9.63209977,189.77,189.7,0.12549]
[1735205848493,9.63209977,189.76,189.7,0.12549]
[1735205850610,9.63209977,189.76,189.69,9.63209977]
[1735205850796,9.63209977,189.75,189.68,9.63209977]
[1735205851003,9.63209977,189.73,189.66,7.9494]
[1735205851696,9.63209977,189.73,189.67,0.12549]
[1735205852513,22.8059,189.77,189.67,0.12549]
[1735205852514,9.63209977,189.74,189.67,0.12549]
[1735205853637,9.63209977,189.74,189.67,9.75758977]
[1735205855524,9.63209977,189.75,189.68,9.63209977]
[1735205856921,9.63209977,189.74,189.67,9.75758977]
[1735205858315,9.63209977,189.74,189.66,7.9494]
[1735205859519,9.63209977,189.72,189.66,7.9494]
[1735205860323,33.40898377,189.73,189.66,17.58149977]
[1735205860627,9.63209977,189.73,189.66,17.58149977]
[1735205861028,9.63209977,189.72,189.66,7.9494]
[1735205861815,9.63209977,189.71,189.66,7.9494]
[1735205862012,29.13627177,189.74,189.66,7.9494]
[1735205862013,9.63209977,189.7,189.66,7.9494]
[1735205862639,9.63209977,189.67,189.61,6.1167]
[1735205862939,9.63209977,189.65,189.6,1.6073]
[1735205864132,9.63209977,189.66,189.6,1.6073]
[1735205864339,9.63209977,189.67,189.6,11.23939977]
[1735205864520,23.776884,189.66,189.6,11.23939977]
[1735205864945,5.35938777,189.7,189.61,0.12549]
[1735205865241,9.63209977,189.67,189.6,1.6073]
[1735205865434,9.63209977,189.66,189.6,1.6073]
[1735205865641,9.63209977,189.65,189.6,1.6073]
[1735205866426,9.63209977,189.63,189.56,15.74879977]
[1735205867756,33.40898377,189.64,189.57,9.75758977]
[1735205868116,23.776884,189.64,189.58,9.63209977]
[1735205868330,9.63209977,189.66,189.59,9.63209977]
[1735205869034,9.63209977,189.67,189.6,9.75758977]
[1735205869538,9.63209977,189.66,189.59,0.12549]
[1735205869928,9.63209977,189.65,189.59,0.12549]
[1735205870353,33.40898377,189.64,189.57,9.63209977]
[1735205870653,33.40898377,189.64,189.56,15.74879977]
[1735205871024,33.40898377,189.64,189.57,0.12549]
[1735205874138,33.40898377,189.64,189.57,9.75758977]
[1735205875363,23.776884,189.64,189.58,9.63209977]
[1735205877365,23.776884,189.64,189.57,0.12549]
[1735205877767,23.776884,189.64,189.58,9.63209977]
[1735205878341,13.18,189.69,189.59,9.63209977]
[1735205878685,9.63209977,189.66,189.59,9.63209977]
[1735205878857,9.63209977,189.66,189.6,0.12549]
[1735205879040,9.63209977,189.67,189.6,9.75758977]
[1735205880957,9.63209977,189.66,189.6,0.12549]
[1735205881153,9.63209977,189.66,189.58,9.63209977]
[1735205881458,9.63209977,189.64,189.57,9.63209977]
[1735205881968,9.63209977,189.64,189.57,0.12549]
[1735205884265,9.63209977,189.64,189.57,9.75758977]
[1735205884562,9.63209977,189.61,189.56,6.1167]
[1735205884764,9.63209977,189.6,189.56,6.1167]
[1735205884946,9.63209977,189.6,189.55,1.666]
[1735205885149,9.63209977,189.59,189.52,6.2767]
[1735205885447,9.63209977,189.59,189.52,15.90879977]
[1735205885842,9.63209977,189.59,189.53,0.12549]
[1735205886960,9.63209977,189.59,189.52,15.90879977]
[1735205889141,9.63209977,189.58,189.52,6.2767]
[1735205892160,9.63209977,189.59,189.52,15.90879977]
[1735205892364,9.63209977,189.6,189.52,15.90879977]
[1735205892547,9.63209977,189.59,189.52,15.90879977]
[1735205893760,9.63209977,189.6,189.53,9.63209977]
[1735205894559,23.776884,189.61,189.54,0.12549]
[1735205894741,9.63209977,189.61,189.54,9.75758977]
[1735205895867,9.63209977,189.61,189.53,9.63209977]
[1735205896071,9.63209977,189.6,189.54,0.12549]
[1735205897272,39.57302761,189.62,189.55,9.63209977]
[1735205897462,9.63209977,189.61,189.54,9.63209977]
[1735205898074,9.63209977,189.61,189.55,0.12549]
[1735205898878,9.63209977,189.61,189.53,9.75758977]
[1735205901572,33.40898377,189.6,189.52,6.2767]
[1735205901781,9.63209977,189.6,189.53,9.63209977]
[1735205902069,9.63209977,189.61,189.54,0.12549]
[1735205902277,39.57302761,189.62,189.54,9.75758977]
[1735205902992,9.63209977,189.67,189.59,9.63209977]
[1735205903279,9.63209977,189.68,189.61,9.63209977]
[1735205903577,9.63209977,189.68,189.6,9.75758977]
[1735205903875,9.63209977,189.68,189.61,9.63209977]
[1735205904246,9.63209977,189.67,189.6,9.75758977]
[1735205905880,9.63209977,189.65,189.59,6.0032]
[1735205906177,9.63209977,189.63,189.59,6.0032]
[1735205907183,9.63209977,189.64,189.59,6.0032]
[1735205907776,13.1746,189.76,189.64,1.6056]
[1735205907982,9.63209977,189.73,189.67,0.12549]
[1735205908558,9.63209977,189.73,189.66,15.63529977]
[1735205908760,9.63209977,189.71,189.66,6.0032]
[1735205908971,9.63209977,189.7,189.64,1.6056]
[1735205909172,9.63209977,189.69,189.64,1.6056]
[1735205910292,23.776884,189.72,189.64,1.6056]
[1735205910592,9.63209977,189.74,189.65,0.12549]
[1735205910766,9.63209977,189.73,189.65,0.12549]
[1735205910957,9.63209977,189.72,189.65,0.12549]
[1735205911165,9.63209977,189.71,189.65,0.12549]
[1735205912073,9.63209977,189.72,189.65,0.12549]
[1735205912376,23.776884,189.75,189.65,9.75758977]
[1735205912584,9.63209977,189.72,189.65,9.75758977]
[1735205912780,9.63209977,189.73,189.65,9.75758977]
[1735205913281,13.1745,189.76,189.65,9.75758977]
[1735205913470,9.63209977,189.72,189.65,9.75758977]
[1735205914575,9.63209977,189.69,189.64,1.6056]
[1735205914767,9.63209977,189.65,189.61,6.0032]
[1735205915686,40.09739908,189.72,189.61,6.0032]
[1735205915687,20.0,189.68,189.61,6.0032]
[1735205915989,9.63209977,189.64,189.59,1.5041]
[1735205917682,33.40898377,189.63,189.59,1.5041]
[1735205917885,9.63209977,189.61,189.56,6.4842]
[1735205918267,15.05394081,189.61,189.56,6.4842]
[1735205919599,15.05394081,189.6,189.56,6.4842]
[1735205920788,15.05394081,189.61,189.56,6.4842]
[1735205922102,15.05394081,189.6,189.56,6.4842]
[1735205923299,15.05394081,189.61,189.56,6.4842]
[1735205925393,15.05394081,189.57,189.46,8.28194107]
[1735205925575,15.05394081,189.55,189.48,15.05394081]
[1735205927790,38.83082481,189.56,189.48,15.05394081]
[1735205928612,15.05394081,189.55,189.48,15.05394081]
[1735205929408,38.83082481,189.56,189.48,15.05394081]
[1735205930199,30.00414157,189.57,189.49,22.84073081]
[1735205930493,30.00414157,189.57,189.51,15.05394081]
[1735205930692,45.05808238,189.57,189.5,15.17943081]
[1735205930878,45.05808238,189.57,189.5,0.12549]
[1735205932295,45.05808238,189.57,189.5,15.17943081]
[1735205933295,30.00414157,189.57,189.5,15.17943081]
[1735205933982,45.05808238,189.57,189.5,15.17943081]
[1735205934676,30.00414157,189.57,189.5,15.17943081]
[1735205936501,30.00414157,189.57,189.53,15.05394081]
[1735205937092,30.00414157,189.57,189.53,0.12549]
[1735205937702,30.00414157,189.57,189.53,15.05394081]
[1735205938410,15.05394081,189.63,189.56,23.09984081]
[1735205938592,15.05394081,189.65,189.59,0.12549]
[1735205938799,15.05394081,189.66,189.59,15.17943081]
[1735205939417,15.05394081,189.67,189.59,15.17943081]
[1735205940084,15.05394081,189.66,189.59,15.17943081]
[1735205940285,9.6297048,189.66,189.59,9.6297048]
[1735205943515,1.6513,189.69,189.59,9.6297048]
[1735205943516,23.776884,189.68,189.6,0.12549]
[1735205943727,9.6297048,189.67,189.6,9.7551948]
[1735205944015,9.6297048,189.67,189.6,9.6297048]
[1735205944179,9.6297048,189.69,189.62,9.6297048]
[1735205945196,9.6297048,189.69,189.61,9.7551948]
[1735205945385,9.6297048,189.68,189.61,0.12549]
[1735205946303,9.6297048,189.69,189.62,0.12549]
[1735205946507,9.6297048,189.68,189.62,0.12549]
[1735205948120,9.6297048,189.68,189.63,7.7259]
[1735205948319,23.776884,189.73,189.64,9.7551948]
[1735205948519,9.6297048,189.72,189.66,0.12549]
[1735205949117,9.6297048,189.72,189.64,9.6297048]
[1735205949320,9.6297048,189.71,189.64,9.6297048]
[1735205949625,9.6297048,189.71,189.65,0.12549]
[1735205949793,9.6297048,189.72,189.65,0.12549]
[1735205950002,9.6297048,189.72,189.66,0.12549]
[1735205951305,39.27192032,189.73,189.66,9.6297048]
[1735205951620,9.6297048,189.72,189.66,0.12549]
[1735205954136,29.64221552,189.73,189.67,9.7551948]
[1735205954735,29.64221552,189.73,189.64,0.79073989]
[1735205954736,29.64221552,189.73,189.69,9.7551948]
[1735205955043,9.6297048,189.76,189.7,7.8779]
[1735205955947,9.6297048,189.74,189.7,7.8779]
[1735205956239,9.6297048,189.73,189.7,7.8779]
[1735205956439,9.6297048,189.74,189.7,7.8779]
[1735205958042,9.6297048,189.73,189.7,7.8779]
[1735205958417,9.6297048,189.74,189.7,7.8779]
[1735205959127,9.6297048,189.73,189.66,7.8779]
[1735205961135,23.776884,189.76,189.68,9.6297048]
[1735205961344,9.6297048,189.75,189.68,9.6297048]
[1735205962141,33.4065888,189.76,189.68,9.6297048]
[1735205962437,29.63597287,189.77,189.69,0.12549]
[1735205962643,9.6297048,189.76,189.7,0.12549]
[1735205963327,9.6297048,189.76,189.68,9.7551948]
[1735205964341,9.6297048,189.75,189.68,9.7551948]
[1735205964841,9.6297048,189.74,189.68,0.12549]
[1735205965141,9.6297048,189.73,189.66,17.5076048]
[1735205965845,9.6297048,189.74,189.67,9.7551948]
[1735205966230,29.63597287,189.77,189.67,9.7551948]
[1735205966546,9.6297048,189.81,189.74,17.6330948]
[1735205966723,9.6297048,189.82,189.75,9.6297048]
[1735205966922,40.63399411,189.86,189.74,17.6330948]
[1735205966923,9.6297048,189.81,189.74,17.6330948]
[1735205967541,27.46589411,189.86,189.77,9.6297048]
[1735205967732,9.6297048,189.85,189.78,0.12549]
[1735205968325,9.6297048,189.84,189.77,9.6297048]
[1735205968532,9.6297048,189.84,189.76,9.6297048]
[1735205968731,9.6297048,189.84,189.77,0.12549]
[1735205969043,9.6297048,189.84,189.77,9.7551948]
[1735205969825,9.6297048,189.84,189.77,0.12549]
[1735205970021,9.6297048,189.83,189.75,9.6297048]
[1735205970340,9.6297048,189.86,189.79,9.6297048]
[1735205970557,9.6297048,189.84,189.75,0.79033646]
[1735205970859,9.6297048,189.84,189.77,9.6297048]
[1735205971144,9.6297048,189.84,189.77,0.12549]
[1735205971646,9.6297048,189.82,189.74,17.5076048]
[1735205971945,9.6297048,189.81,189.74,17.5076048]
[1735205972443,9.6297048,189.8,189.74,7.8779]
[1735205974541,21.7365682,189.92,189.78,0.12549]
[1735205974542,4.2926682,189.92,189.78,0.12549]
[1735205974749,9.6297048,189.86,189.79,9.6297048]
[1735205975142,9.6297048,189.85,189.78,9.6297048]
[1735205975346,9.6297048,189.85,189.79,0.12549]
[1735205976229,9.6297048,189.86,189.79,9.6297048]
[1735205977157,9.6297048,189.87,189.8,9.6297048]
[1735205977760,9.6297048,189.86,189.79,9.6297048]
[1735205978062,23.776884,189.88,189.8,0.12549]
[1735205978256,9.6297048,189.87,189.8,9.6297048]
[1735205978560,9.6297048,189.86,189.8,0.12549]
[1735205978731,9.6297048,189.87,189.8,0.12549]
[1735205979456,9.6297048,189.81,189.74,7.8779]
[1735205979662,9.6297048,189.78,189.74,7.8779]
[1735205980163,13.1669,189.87,189.75,0.12549]
[1735205980454,9.6297048,189.82,189.75,9.7551948]
[1735205980854,9.6297048,189.81,189.75,9.7551948]
[1735205981737,9.6297048,189.82,189.75,9.7551948]
[1735205982348,9.6297048,189.82,189.75,15.14597491]
[1735205982349,15.02048491,189.82,189.75,15.14597491]
[1735205984148,13.1669,189.87,189.76,15.02048491]
[1735205984332,23.776884,189.86,189.77,15.02048491]
[1735205984527,23.776884,189.86,189.75,0.12549]
[1735205984528,15.02048491,189.82,189.76,15.02048491]
[1735205984725,15.02048491,189.81,189.75,15.14597491]
[1735205984932,15.02048491,189.82,189.76,15.02048491]
[1735205985751,15.02048491,189.84,189.78,15.02048491]
[1735205985957,7.6497,189.94,189.82,15.02048491]
[1735205986158,15.02048491,189.89,189.82,15.02048491]
[1735205986527,7.6497,189.94,189.82,15.02048491]
[1735205986528,15.02048491,189.87,189.82,0.12549]
[1735205988271,15.02048491,189.88,189.82,15.14597491]
[1735205991476,15.02048491,189.88,189.82,0.12549]
[1735205992358,15.02048491,189.85,189.81,7.6475]
[1735205994138,15.02048491,189.84,189.79,0.12549]
[1735205994553,15.02048491,189.84,189.77,15.14597491]
[1735205994740,15.02048491,189.82,189.77,0.12549]
[1735205997048,15.02048491,189.83,189.77,15.14597491]
[1735206000572,15.02048491,189.79,189.72,15.02048491]
[1735206000949,15.02048491,189.77,189.71,22.91908491]
[1735206001755,15.02048491,189.76,189.71,7.8986]
[1735206004365,15.02048491,189.75,189.71,7.8986]
[1735206004672,15.02048491,189.74,189.71,7.8986]
[1735206004873,15.02048491,189.74,189.68,0.12549]
[1735206005983,15.02048491,189.72,189.67,7.8986]
[1735206006649,15.02048491,189.73,189.67,7.8986]
[1735206007289,23.776884,189.78,189.68,15.14597491]
[1735206007457,15.02048491,189.75,189.68,15.14597491]
[1735206010099,15.02048491,189.75,189.69,15.02048491]
[1735206012475,15.02048491,189.75,189.68,15.14597491]
[1735206014290,9.62011461,189.75,189.69,9.62011461]
[1735206014491,9.62011461,189.76,189.7,9.62011461]
[1735206014672,9.62011461,189.76,189.69,9.62011461]
[1735206014997,9.62011461,189.76,189.7,9.62011461]
[1735206017592,9.62011461,189.77,189.7,9.62011461]
[1735206017788,16.7995318,189.84,189.72,9.74560461]
[1735206017988,9.62011461,189.79,189.72,9.74560461]
[1735206018195,9.62011461,189.8,189.74,0.12549]
[1735206018578,9.62011461,189.81,189.75,0.12549]
[1735206018887,9.62011461,189.8,189.75,0.12549]
[1735206019210,9.62011461,189.8,189.74,0.12549]
[1735206019711,9.62011461,189.79,189.74,0.12549]
[1735206019893,9.62011461,189.79,189.73,0.12549]
[1735206020498,9.62011461,189.78,189.73,0.12549]
[1735206021337,9.62011461,189.79,189.73,0.12549]
[1735206022108,23.776884,189.83,189.73,9.74560461]
[1735206022301,9.62011461,189.79,189.73,9.74560461]
[1735206022802,9.62011461,189.76,189.69,9.62011461]
[1735206023116,9.62011461,189.81,189.75,0.12549]
[1735206023479,9.62011461,189.8,189.75,0.12549]
[1735206023674,9.62011461,189.8,189.73,9.62011461]
[1735206023879,9.62011461,189.8,189.74,0.12549]
[1735206024210,23.776884,189.83,189.74,0.12549]
[1735206024390,9.62011461,189.8,189.74,0.12549]
[1735206024793,9.62011461,189.81,189.75,0.12549]
[1735206025105,9.62011461,189.8,189.75,0.12549]
[1735206025313,9.62011461,189.8,189.74,0.12549]
[1735206025525,9.62011461,189.78,189.74,0.12549]
[1735206025818,9.62011461,189.79,189.74,0.12549]
[1735206026182,23.776884,189.83,189.73,20.0]
[1735206026183,9.62011461,189.78,189.73,20.0]
[1735206026379,9.62011461,189.78,189.71,9.62011461]
[1735206026819,23.776884,189.83,189.67,25.80065568]
[1735206026820,9.62011461,189.74,189.67,25.80065568]
[1735206026985,9.62011461,189.74,189.67,17.51871461]
[1735206027625,9.62011461,189.73,189.67,7.8986]
[1735206028790,9.62011461,189.71,189.67,7.8986]
[1735206029728,9.62011461,189.72,189.67,7.8986]
[1735206030017,13.1732,189.78,189.67,7.8986]
[1735206030018,9.62011461,189.73,189.67,7.8986]
[1735206030199,9.62011461,189.73,189.68,0.12549]
[1735206030405,9.62011461,189.75,189.68,9.74560461]
[1735206030594,9.62011461,189.76,189.7,0.12549]
[1735206030990,38.48045844,189.81,189.7,0.12549]
[1735206031188,9.62011461,189.76,189.7,0.12549]
[1735206032328,15.03036747,189.76,189.7,0.12549]
[1735206036751,15.03036747,189.77,189.71,0.12549]
[1735206037071,15.03036747,189.76,189.71,0.12549]
[1735206037633,13.1709,189.82,189.7,0.12549]
[1735206037839,15.03036747,189.77,189.7,15.15585747]
[1735206038240,15.03036747,189.76,189.7,0.12549]
[1735206038428,15.03036747,189.76,189.68,15.15585747]
[1735206039324,15.03036747,189.75,189.68,15.15585747]
[1735206039529,15.03036747,189.74,189.68,0.12549]
[1735206040146,15.03036747,189.75,189.68,15.15585747]
[1735206041705,15.03036747,189.74,189.68,0.12549]
[1735206041911,15.03036747,189.72,189.67,7.8986]
[1735206042816,15.03036747,189.71,189.67,7.8986]
[1735206045242,15.03036747,189.72,189.67,7.8986]
[1735206047115,23.776884,189.75,189.67,7.8986]
[1735206047311,15.03036747,189.71,189.67,7.8986]
[1735206048970,15.03036747,189.72,189.67,7.8986]
[1735206049459,38.80725147,189.72,189.67,7.8986]
[1735206049636,15.03036747,189.71,189.67,7.8986]
[1735206051036,23.776884,189.7,189.64,15.03036747]
[1735206051237,13.176,189.74,189.63,7.6095]
[1735206051535,15.03036747,189.7,189.64,0.12549]
[1735206052133,9.62492539,189.71,189.64,0.12549]
[1735206053273,9.62492539,189.71,189.66,20.0]
[1735206053572,9.62492539,189.69,189.64,0.12549]
[1735206061383,9.62492539,189.71,189.64,0.12549]
[1735206061592,9.62492539,189.69,189.63,7.6095]
[1735206061882,9.62492539,189.65,189.58,16.54814107]
[1735206062254,9.62492539,189.65,189.59,0.12549]
[1735206062787,9.62492539,189.65,189.58,8.2662]
[1735206063159,9.62492539,189.65,189.61,20.0]
[1735206064197,9.62492539,189.64,189.61,20.0]
[1735206064492,9.62492539,189.64,189.58,8.2662]
[1735206064780,9.62492539,189.63,189.58,8.2662]
[1735206065893,9.62492539,189.62,189.58,8.2662]